fUST/lending_fUST_20240517
["ID","MTS","AMOUNT","RATE_DAILY","PERIOD"]
[327260852,1715944232372,-93.19910931,0.00017795,2]
[327261021,1715944240561,-406.80089069,0.00017795,2]
[327261023,1715944240570,-705.8,0.00017795,2]
[327261025,1715944240580,-500.0,0.00017795,2]
[327261027,1715944240592,-1209.80892214,0.00017795,2]
[327261029,1715944240604,-311.20545213,0.00017795,2]
[327261031,1715944240615,-4946.90562573,0.00017795,2]
[327261033,1715944240624,-500.0,0.00017795,2]
[327261035,1715944240634,-775.84,0.00017795,2]
[327261037,1715944240643,-10386.75437427,0.00017795,2]
[327261352,1715944243986,-3246.47562573,0.00017795,2]
[327261355,1715944243996,-500.0,0.00017795,2]
[327261358,1715944244006,-500.0,0.00017795,2]
[327261360,1715944244015,-1422.35617078,0.00017795,2]
[327261496,1715944246672,-723.62736848,0.00017795,2]
[327261556,1715944333792,1581.20220046,9.999e-05,2]
[327261557,1715944338708,1496.16357216,9.999e-05,2]
[327261560,1715944984388,702.4648627,9.999e-05,2]
[327261561,1715945130862,150.0,0.00026,120]
[327261577,1715945432646,-154.70605849,0.00015577,2]
[327261578,1715945432665,-448.991567,0.0001618,2]
[327261579,1715945432677,-528.18213945,0.00016397,2]
[327261580,1715945432688,-242.08726604,0.00016397,2]
[327261581,1715945432699,-395.12068195,0.00016398,2]
[327261582,1715945432709,-16410.87241438,0.00016399,2]
[327261583,1715945432719,-273.93944197,0.000165,2]
[327261584,1715945432730,-150.0,0.00016773,2]
[327261585,1715945432740,-150.0,0.00016773,2]
[327261586,1715945432750,-165.78079373,0.00016804,2]
[327261587,1715945432760,-189.55440765,0.00016804,2]
[327261588,1715945432770,-910.77693166,0.00016904,2]
[327261589,1715945432780,-150.0,0.00016992,2]
[327261590,1715945432790,-4221.46001999,0.00017277,2]
[327261591,1715945432800,-416.98047207,0.00017339,2]
[327261592,1715945432810,-1237.29190451,0.000175,2]
[327261593,1715945432820,-961.83020423,0.00017692,2]
[327261594,1715945432830,-674.34158132,0.00017694,2]
[327261595,1715945432839,-13168.29,0.00017699,2]
[327261596,1715945432849,-500.0,0.00017699,2]
[327261597,1715945432859,-789.49,0.00017699,2]
[327261598,1715945432868,-2071.31,0.00017699,2]
[327261599,1715945432878,-4253.10807707,0.000177,3]
[327261600,1715945432890,-13628.16481691,0.000177,2]
[327261644,1715945438978,-150.0,0.00016773,2]
[327261646,1715945438988,-150.0,0.00016773,2]
[327261647,1715945438998,-3641.3,0.000177,2]
[327261673,1715945439318,-1790.00061626,0.000177,2]
[327261764,1715945441294,-940.53456683,0.000177,2]
[327261765,1715945441304,-475.06317778,0.00017792,2]
[327261766,1715945441314,-2633.04320867,0.00017793,2]
[327261767,1715945441323,-684.29354561,0.00017794,2]
[327261768,1715945441333,-500.0,0.00017794,2]
[327261769,1715945441343,-500.0,0.00017794,2]
[327261770,1715945441352,-504.0,0.00017794,2]
[327261771,1715945441361,-12.76550111,0.00017794,2]
[327261772,1715945441373,-284.07839988,0.00017794,2]
[327262016,1715945474083,177.8,0.00010959,2]
[327262017,1715945475483,675.749847,9.999e-05,2]
[327262018,1715945484616,889.01,0.00010959,2]
[327262021,1715945818882,5029.37078418,0.000125,2]
[327262023,1715946041758,154.70605849,0.00014898,2]
[327262025,1715946126268,154.70605849,0.00014898,2]
[327262026,1715946144265,154.70605849,0.00014898,2]
[327262027,1715946162268,196.7168439,0.00014898,2]
[327262028,1715946363089,150.0,0.00019,10]
[327262029,1715946448230,-250.0,0.00015482,2]
[327262030,1715946448252,-576.89963652,0.00015621,2]
[327262073,1715946632525,-1001.1062598,0.00015551,2]
[327262074,1715946632534,-70.6038411,0.00015582,2]
[327262145,1715946638611,-94.30046117,0.00015582,2]
[327262147,1715946638620,-172.57188842,0.00015682,2]
[327262149,1715946638629,-2473.6902827,0.00015682,2]
[327262151,1715946638638,-2658.26813626,0.00015683,2]
[327262153,1715946638649,-449.763252,0.00015721,2]
[327262155,1715946638659,-372.681754,0.00015726,2]
[327262157,1715946638668,-684.29354561,0.00015731,2]
[327262158,1715946638678,-24900.0,0.00015732,2]
[327262160,1715946638688,-788.96523469,0.00016679,2]
[327262162,1715946638697,-150.0,0.00016778,3]
[327262164,1715946638707,-150.0,0.00016778,2]
[327262166,1715946638716,-150.0,0.00016996,2]
[327262168,1715946638725,-150.0,0.00017214,2]
[327262171,1715946638734,-4221.46001999,0.00017454,2]
[327262172,1715946638743,-1237.29190451,0.000175,2]
[327262174,1715946638753,-416.98047207,0.00017508,2]
[327262176,1715946638762,-164.90430227,0.00017595,2]
[327262178,1715946638772,-949.32018978,0.00017596,2]
[327262180,1715946638782,-354.82063095,0.0001762,2]
[327262182,1715946638791,-4150.86,0.00017694,2]
[327262184,1715946638801,-12619.62,0.00017694,2]
[327262186,1715946638810,-756.59,0.00017694,2]
[327262188,1715946638819,-500.0,0.00017694,2]
[327262190,1715946638828,-379.28088672,0.00017694,2]
[327262192,1715946638837,-500.0,0.00017694,2]
[327262194,1715946638847,-1985.01,0.00017694,2]
[327262196,1715946638855,-500.0,0.00017694,2]
[327262198,1715946638864,-533.98,0.00017694,2]
[327262200,1715946638873,-500.0,0.00017694,2]
[327262202,1715946638882,-399.68444278,0.00017695,2]
[327262204,1715946638891,-676.39,0.00017695,2]
[327262206,1715946638900,-500.0,0.00017695,2]
[327262208,1715946638909,-6198.42,0.00017695,2]
[327262210,1715946638918,-500.0,0.00017695,2]
[327262212,1715946638927,-151.47818068,0.00017695,2]
[327262227,1715946639085,-500.0,0.00017695,2]
[327262229,1715946639095,-471.13258143,0.00017695,2]
[327262231,1715946639105,-500.0,0.00017695,2]
[327262233,1715946639114,-500.0,0.00017695,2]
[327262235,1715946639125,-500.0,0.00017695,2]
[327262237,1715946639134,-500.0,0.00017695,2]
[327262239,1715946639144,-500.0,0.00017695,2]
[327262241,1715946639153,-2923.82,0.00017695,2]
[327262243,1715946639163,-2126.55403853,0.00017696,3]
[327262245,1715946639172,-250.57089593,0.00017696,2]
[327262247,1715946639181,-500.0,0.00017696,2]
[327262249,1715946639190,-500.0,0.00017696,2]
[327262251,1715946639200,-629.09011537,0.00017696,2]
[327262253,1715946639209,-502.67621234,0.00017696,2]
[327262255,1715946639219,-500.0,0.00017696,2]
[327262257,1715946639229,-500.0,0.00017696,2]
[327262259,1715946639238,-500.0,0.00017696,2]
[327262261,1715946639248,-500.0,0.00017696,2]
[327262263,1715946639257,-151.0,0.00017696,2]
[327262265,1715946639266,-151.0,0.00017696,2]
[327262267,1715946639279,-151.0,0.00017696,2]
[327262269,1715946639288,-151.0,0.00017696,2]
[327262271,1715946639298,-176.60234,0.00017696,2]
[327262273,1715946639308,-176.60234,0.00017696,2]
[327262274,1715946639318,-502.67135322,0.00017696,2]
[327262276,1715946639327,-423.67144054,0.00017696,2]
[327262278,1715946639337,-151.0,0.00017696,2]
[327262280,1715946639346,-151.0,0.00017696,2]
[327262282,1715946639359,-151.0,0.00017696,2]
[327262284,1715946639368,-574.95,0.00017696,2]
[327262286,1715946639377,-151.0,0.00017696,2]
[327262287,1715946639387,-151.0,0.00017696,2]
[327262289,1715946639396,-151.0,0.00017696,2]
[327262290,1715946639405,-158.807904,0.00017696,2]
[327262292,1715946639415,-500.0,0.00017696,2]
[327262293,1715946639424,-164.672604,0.00017696,2]
[327262294,1715946639434,-500.0,0.00017696,2]
[327262295,1715946639443,-151.0,0.00017696,2]
[327262296,1715946639453,-164.672604,0.00017696,2]
[327262297,1715946639462,-197.576807,0.00017697,2]
[327262298,1715946639471,-151.0,0.00017697,2]
[327262299,1715946639480,-453.02757533,0.00017698,2]
[327262300,1715946639490,-151.0,0.00017698,2]
[327262301,1715946639499,-192.598474,0.00017698,2]
[327262302,1715946639508,-151.0,0.00017698,2]
[327262303,1715946639518,-151.0,0.00017698,2]
[327262304,1715946639530,-184.448156,0.00017698,2]
[327262305,1715946639539,-184.448156,0.00017698,2]
[327262306,1715946639548,-151.0,0.00017698,2]
[327262307,1715946639557,-503.001495,0.00017698,2]
[327262308,1715946639566,-503.001495,0.00017698,2]
[327262309,1715946639575,-500.0,0.00017698,2]
[327262310,1715946639584,-151.0,0.00017698,2]
[327262311,1715946639594,-151.0,0.00017698,2]
[327262312,1715946639603,-151.0,0.00017698,2]
[327262313,1715946639613,-151.0,0.00017698,2]
[327262314,1715946639623,-176.60234,0.00017698,2]
[327262315,1715946639632,-176.60234,0.00017698,2]
[327262316,1715946639642,-151.0,0.00017698,2]
[327262317,1715946639651,-151.0,0.00017698,2]
[327262318,1715946639661,-151.0,0.00017698,2]
[327262319,1715946639671,-164.672604,0.00017698,2]
[327262320,1715946639680,-151.0,0.00017698,2]
[327262321,1715946639687,-164.672604,0.00017698,2]
[327262322,1715946639693,-500.0,0.00017699,2]
[327262323,1715946639700,-500.0,0.00017699,2]
[327262324,1715946639707,-500.0,0.00017699,2]
[327262325,1715946639715,-500.0,0.00017699,2]
[327262326,1715946639724,-500.80376246,0.00017699,2]
[327262327,1715946639734,-500.41725484,0.00017699,2]
[327262328,1715946639744,-504.17058183,0.00017699,2]
[327262329,1715946639753,-151.0,0.00017699,2]
[327262330,1715946639763,-500.0,0.00017699,2]
[327262331,1715946639772,-500.0,0.00017699,2]
[327262332,1715946639782,-500.0,0.00017699,2]
[327262333,1715946639792,-152.930151,0.00017699,2]
[327262334,1715946639802,-209.33859781,0.00017699,2]
[327262335,1715946639811,-292.60916471,0.00017699,2]
[327262336,1715946639821,-501.47779939,0.00017699,2]
[327262337,1715946639831,-500.0,0.00017699,2]
[327262338,1715946639840,-501.98240884,0.00017699,2]
[327262339,1715946639850,-504.0,0.00017699,2]
[327262340,1715946639860,-501.95000294,0.00017699,2]
[327262341,1715946639869,-501.74273877,0.00017699,2]
[327262342,1715946639880,-372.81766984,0.00017699,2]
[327262343,1715946639890,-421.21839258,0.00017699,2]
[327262344,1715946639899,-501.40175283,0.00017699,2]
[327262345,1715946639908,-184.448156,0.00017699,2]
[327262346,1715946639918,-184.448156,0.00017699,2]
[327262347,1715946639928,-184.448156,0.00017699,2]
[327262348,1715946639938,-184.448156,0.00017699,2]
[327262349,1715946639947,-151.0,0.00017699,2]
[327262350,1715946639957,-503.001495,0.00017699,2]
[327262351,1715946639966,-503.001495,0.00017699,2]
[327262352,1715946639976,-503.001495,0.00017699,2]
[327262353,1715946639986,-503.001495,0.00017699,2]
[327262354,1715946639995,-151.0,0.00017699,2]
[327262355,1715946640005,-151.0,0.00017699,2]
[327262356,1715946640015,-151.0,0.00017699,2]
[327262357,1715946640026,-209.110238,0.00017699,2]
[327262358,1715946640036,-176.60234,0.00017699,2]
[327262359,1715946640045,-176.60234,0.00017699,2]
[327262360,1715946640054,-151.0,0.00017699,2]
[327262361,1715946640063,-151.0,0.00017699,2]
[327262362,1715946640074,-151.0,0.00017699,2]
[327262363,1715946640084,-279.156283,0.00017699,2]
[327262364,1715946640094,-164.672604,0.00017699,2]
[327262365,1715946640104,-164.672604,0.00017699,2]
[327262366,1715946640114,-151.0,0.00017699,2]
[327262367,1715946640124,-151.0,0.00017699,2]
[327262368,1715946640135,-164.672604,0.00017699,2]
[327262369,1715946640145,-164.672604,0.00017699,2]
[327262370,1715946640156,-2106.56360216,0.00017792,2]
[327262371,1715946640166,-742.4270698,0.00017792,2]
[327262372,1715946640176,-151.0,0.00017792,2]
[327262373,1715946640186,-159.808158,0.00017792,2]
[327262374,1715946640197,-151.0,0.00017792,2]
[327262375,1715946640208,-176.60234,0.00017792,2]
[327262376,1715946640218,-176.60234,0.00017792,2]
[327262377,1715946640227,-151.0,0.00017792,2]
[327262378,1715946640237,-261.787066,0.00017795,2]
[327262379,1715946640247,-151.0,0.00017795,2]
[327262380,1715946640256,-244.126605,0.00017795,2]
[327262381,1715946640266,-184.448156,0.00017795,2]
[327262382,1715946640280,-184.448156,0.00017795,2]
[327262383,1715946640290,-503.001495,0.00017795,2]
[327262384,1715946640299,-503.001495,0.00017795,2]
[327262385,1715946640308,-10313.62275364,0.00017798,2]
[327262386,1715946640318,-184.448156,0.00017798,2]
[327262387,1715946640328,-184.448156,0.00017798,2]
[327262388,1715946640337,-503.001495,0.00017798,2]
[327262389,1715946640347,-503.001495,0.00017798,2]
[327262390,1715946640358,-151.0,0.00017798,2]
[327262392,1715946640367,-151.0,0.00017798,2]
[327262393,1715946640378,-176.60234,0.00017798,2]
[327262394,1715946640387,-176.60234,0.00017798,2]
[327262395,1715946640396,-254.07445,0.00017798,2]
[327262396,1715946640406,-151.0,0.00017798,2]
[327262397,1715946640416,-164.672604,0.00017798,2]
[327262398,1715946640425,-151.0,0.00017798,2]
[327262399,1715946640435,-164.672604,0.00017798,2]
[327262400,1715946640445,-294.15381918,0.00017893,2]
[327262401,1715946640455,-250.36109787,0.00017893,2]
[327262402,1715946640464,-154.81422293,0.00017893,2]
[327262403,1715946640474,-156.75733946,0.00017897,2]
[327262404,1715946640483,-509.58714597,0.00017897,2]
[327262405,1715946640493,-949.32018974,0.00017897,2]
[327262406,1715946640503,-934.45074912,0.00017898,2]
[327262409,1715946640850,-9514.41045443,0.00017898,2]
[327262410,1715946640859,-184.448156,0.00017898,2]
[327262411,1715946640869,-184.448156,0.00017898,2]
[327262412,1715946640879,-503.001495,0.00017898,2]
[327262413,1715946640888,-503.001495,0.00017898,2]
[327262414,1715946640897,-151.0,0.00017898,2]
[327262415,1715946640907,-151.0,0.00017898,2]
[327262416,1715946640916,-176.60234,0.00017898,2]
[327262417,1715946640926,-176.60234,0.00017898,2]
[327262418,1715946640936,-151.0,0.00017898,2]
[327262419,1715946640945,-164.672604,0.00017898,2]
[327262420,1715946640955,-151.0,0.00017898,2]
[327262421,1715946640965,-164.672604,0.00017898,2]
[327262422,1715946640974,-4150.86,0.00017968,2]
[327262423,1715946640984,-12619.62,0.00017968,2]
[327262424,1715946640993,-756.59,0.00017968,2]
[327262425,1715946641003,-1985.01,0.00017968,2]
[327262426,1715946641012,-151.0,0.00017968,2]
[327262427,1715946641022,-330.11759204,0.00017969,2]
[327262445,1715946643662,-346.27240796,0.00017969,2]
[327262446,1715946643673,-500.0,0.00017969,2]
[327262447,1715946643682,-151.0,0.00017969,2]
[327262448,1715946643692,-1661.08731502,0.00017969,2]
[327262457,1715946739455,154.70605849,9.999e-05,2]
[327262458,1715946754012,154.70605849,9.999e-05,2]
[327262459,1715946781366,154.70605849,9.999e-05,2]
[327262460,1715947033890,155.17663082,9.999e-05,2]
[327262461,1715947055815,154.86062544,9.999e-05,2]
[327262462,1715947066980,150.69860279,0.00022633,120]
[327262463,1715947081813,154.90266124,9.999e-05,2]
[327262464,1715947425171,24900.0,0.00014984,2]
[327262465,1715947590496,150.71364408,0.00022924,30]
[327262466,1715947590551,150.71364408,0.00022465,120]
[327262467,1715947652085,-165.0653007,0.00015381,2]
[327262468,1715947652108,-991.308585,0.00015394,2]
[327262469,1715947652132,-186.340877,0.00015481,2]
[327262470,1715947652154,-1193.90759782,0.00015513,2]
[327262497,1715947831816,-9856.96357041,0.00015513,2]
[327262498,1715947831826,-930.94102569,0.00015514,2]
[327262499,1715947831837,-359.39826424,0.0001623,2]
[327262500,1715947831846,-684.29354561,0.00016331,2]
[327262501,1715947831855,-709.0884584,0.00016331,2]
[327262502,1715947831865,-835.08477091,0.00016331,2]
[327262503,1715947831874,-717.42221432,0.00016677,2]
[327262504,1715947831883,-500.0,0.00016679,2]
[327262505,1715947831892,-500.0,0.00016679,2]
[327262506,1715947831900,-620.03,0.00016679,2]
[327262507,1715947831910,-500.0,0.00016679,2]
[327262508,1715947831919,-5870.94,0.00016679,2]
[327262509,1715947831929,-606.13520969,0.00016679,2]
[327262510,1715947831938,-658.00018209,0.00016777,2]
[327262511,1715947831948,-11567.98,0.00016777,2]
[327262512,1715947831958,-693.54,0.00016777,2]
[327262513,1715947831968,-1819.59,0.00016777,2]
[327262514,1715947831978,-638.37,0.00016777,2]
[327262515,1715947831988,-503.36305944,0.00016778,2]
[327262516,1715947831997,-569.65179403,0.00016778,2]
[327262517,1715947832007,-531.82153831,0.00016778,2]
[327262518,1715947832016,-501.87869349,0.00016778,2]
[327262519,1715947832025,-500.0,0.00016778,2]
[327262520,1715947832034,-464.37156724,0.00016778,2]
[327262521,1715947832043,-521.98164344,0.00016778,2]
[327262522,1715947832052,-165.28980394,0.00016778,2]
[327262523,1715947832062,-500.0,0.00016778,2]
[327262524,1715947832071,-500.0,0.00016778,2]
[327262525,1715947832081,-500.0,0.00016778,2]
[327262526,1715947832092,-500.0,0.00016778,2]
[327262527,1715947832101,-500.0,0.00016778,2]
[327262528,1715947832110,-505.58600913,0.00016778,2]
[327262529,1715947832119,-501.41407099,0.00016778,2]
[327262530,1715947832129,-500.0,0.00016778,2]
[327262531,1715947832138,-500.85971969,0.00016778,2]
[327262532,1715947832148,-500.0,0.00016778,2]
[327262533,1715947832159,-503.6156687,0.00016778,2]
[327262534,1715947832168,-505.18062299,0.00016778,2]
[327262535,1715947832178,-567.74176865,0.00016778,2]
[327262536,1715947832187,-503.35615081,0.00016778,2]
[327262537,1715947832198,-514.39481463,0.00016778,2]
[327262538,1715947832207,-500.0,0.00016778,2]
[327262539,1715947832217,-502.49611216,0.00016778,2]
[327262540,1715947832226,-505.14416001,0.00016778,2]
[327262541,1715947832236,-514.1380679,0.00016778,2]
[327262542,1715947832245,-500.0,0.00016778,2]
[327262543,1715947832255,-500.0,0.00016778,2]
[327262544,1715947832264,-500.0,0.00016778,2]
[327262545,1715947832274,-500.0,0.00016778,2]
[327262546,1715947832284,-504.4740575,0.00016778,2]
[327262547,1715947832293,-531.25128795,0.00016778,2]
[327262548,1715947832303,-500.0,0.00016778,2]
[327262549,1715947832312,-500.0,0.00016778,2]
[327262550,1715947832321,-500.0,0.00016778,2]
[327262551,1715947832332,-500.0,0.00016778,2]
[327262552,1715947832343,-2801.99,0.00016778,2]
[327262553,1715947832352,-266.87736552,0.00016778,2]
[327262554,1715947832360,-500.0,0.00016778,2]
[327262555,1715947832370,-151.0,0.00016778,2]
[327262556,1715947832380,-503.41350441,0.00016778,2]
[327262557,1715947832389,-151.0,0.00016778,2]
[327262558,1715947832399,-502.00452264,0.00016778,2]
[327262559,1715947832408,-501.89316035,0.00016778,2]
[327262560,1715947832417,-500.0,0.00016778,2]
[327262561,1715947832427,-236.66931354,0.00016778,2]
[327262562,1715947832436,-500.0,0.00016778,2]
[327262563,1715947832446,-500.0,0.00016778,2]
[327262564,1715947832455,-500.0,0.00016778,2]
[327262565,1715947832464,-151.0,0.00016778,2]
[327262566,1715947832473,-467.65846421,0.00016778,2]
[327262567,1715947832482,-500.0,0.00016778,2]
[327262568,1715947832492,-151.0,0.00016778,2]
[327262569,1715947832501,-2527.87,0.00016778,2]
[327262570,1715947832510,-550.99,0.00016778,2]
[327262571,1715947832519,-151.0,0.00016778,2]
[327262572,1715947832529,-151.0,0.00016778,2]
[327262573,1715947832538,-500.0,0.00016778,2]
[327262574,1715947832547,-182.095,0.00016778,2]
[327262575,1715947832557,-480.25444195,0.00016778,2]
[327262576,1715947832566,-638.37,0.00016778,2]
[327262577,1715947832575,-15449.94214793,0.00016778,2]
[327262636,1715947838010,-18683.08881463,0.00016778,2]
[327262637,1715947838020,-151.0,0.00016779,2]
[327262638,1715947838030,-267.585246,0.00016779,2]
[327262639,1715947838039,-201.200598,0.00016779,2]
[327262640,1715947838049,-201.200598,0.00016779,2]
[327262641,1715947838058,-151.0,0.00016779,2]
[327262642,1715947838068,-151.0,0.00016779,2]
[327262643,1715947838078,-151.0,0.00016779,2]
[327262644,1715947838088,-213.567006,0.00016779,2]
[327262645,1715947838098,-151.0,0.00016779,2]
[327262646,1715947838107,-151.0,0.00016779,2]
[327262647,1715947838116,-21835.46741018,0.00016779,2]
[327262648,1715947838126,-150.0,0.00016818,3]
[327262649,1715947838136,-150.0,0.00016818,3]
[327262650,1715947838146,-500.11958888,0.00016849,2]
[327262651,1715947838156,-638.37,0.00016952,2]
[327262652,1715947838166,-500.0,0.00016953,2]
[327262653,1715947838175,-151.0,0.00016953,2]
[327262654,1715947838185,-151.0,0.00016953,2]
[327262655,1715947838195,-500.0,0.00016953,2]
[327262656,1715947838205,-151.0,0.00016953,2]
[327262657,1715947838214,-620.03,0.00016953,2]
[327262658,1715947838223,-500.0,0.00016953,2]
[327262659,1715947838233,-5870.94,0.00016953,2]
[327262660,1715947838243,-151.0,0.00016953,2]
[327262661,1715947838252,-151.0,0.00016953,2]
[327262662,1715947838261,-606.13520966,0.00017021,2]
[327262663,1715947838270,-11567.98,0.00017051,2]
[327262664,1715947838280,-693.54,0.00017051,2]
[327262665,1715947838289,-1819.59,0.00017051,2]
[327262666,1715947838299,-500.0,0.00017052,2]
[327262667,1715947838308,-500.0,0.00017052,2]
[327262668,1715947838317,-500.0,0.00017052,2]
[327262669,1715947838326,-433.88,0.00017052,2]
[327262670,1715947838336,-204.62047253,0.00017052,2]
[327262671,1715947838346,-500.0,0.00017052,2]
[327262672,1715947838355,-500.0,0.00017052,2]
[327262673,1715947838364,-500.0,0.00017052,2]
[327262674,1715947838373,-519.09,0.00017052,2]
[327262675,1715947838382,-303.8,0.00017052,2]
[327262676,1715947838392,-412.48,0.00017052,2]
[327262677,1715947838401,-151.0,0.00017052,2]
[327262678,1715947838410,-201.200598,0.00017052,2]
[327262679,1715947838420,-201.200598,0.00017052,2]
[327262680,1715947838429,-500.0,0.00017052,2]
[327262681,1715947838438,-2801.99,0.00017052,2]
[327262682,1715947838447,-151.0,0.00017052,2]
[327262683,1715947838457,-500.0,0.00017052,2]
[327262684,1715947838466,-151.0,0.00017052,2]
[327262685,1715947838476,-2527.87,0.00017052,2]
[327262686,1715947838485,-550.99,0.00017052,2]
[327262687,1715947838494,-151.0,0.00017052,2]
[327262688,1715947838504,-151.0,0.00017052,2]
[327262689,1715947838513,-500.0,0.00017052,2]
[327262690,1715947838522,-500.0,0.00017227,2]
[327262691,1715947838531,-500.0,0.00017227,2]
[327262692,1715947838540,-151.0,0.00017227,2]
[327262693,1715947838550,-620.03,0.00017227,2]
[327262694,1715947838559,-500.0,0.00017227,2]
[327262695,1715947838569,-5870.94,0.00017227,2]
[327262696,1715947838578,-151.0,0.00017227,2]
[327262697,1715947838589,-11567.98,0.00017325,2]
[327262698,1715947838598,-693.54,0.00017325,2]
[327262699,1715947838607,-1819.59,0.00017325,2]
[327262700,1715947838617,-638.37,0.00017325,2]
[327262701,1715947838626,-1063.27701927,0.00017326,3]
[327262702,1715947838635,-500.0,0.00017326,2]
[327262703,1715947838645,-351.63,0.00017326,2]
[327262704,1715947838657,-500.0,0.00017326,2]
[327262705,1715947838666,-500.0,0.00017326,2]
[327262706,1715947838676,-500.0,0.00017326,2]
[327262707,1715947838685,-500.0,0.00017326,2]
[327262708,1715947838695,-151.0,0.00017326,2]
[327262709,1715947838704,-201.200598,0.00017326,2]
[327262710,1715947838713,-201.200598,0.00017326,2]
[327262711,1715947838722,-500.0,0.00017326,2]
[327262712,1715947838735,-2801.99,0.00017326,2]
[327262713,1715947838745,-500.0,0.00017326,2]
[327262714,1715947838754,-151.0,0.00017326,2]
[327262715,1715947838763,-2527.87,0.00017326,2]
[327262716,1715947838773,-550.99,0.00017326,2]
[327262717,1715947838782,-151.0,0.00017326,2]
[327262718,1715947838792,-500.0,0.00017326,2]
[327262719,1715947838801,-606.13520966,0.00017363,2]
[327262720,1715947838810,-1237.29190451,0.000175,2]
[327262721,1715947838819,-3097.84535399,0.00017501,3]
[327262722,1715947838829,-500.0,0.00017501,2]
[327262723,1715947838838,-500.0,0.00017501,2]
[327262724,1715947838848,-151.0,0.00017501,2]
[327262725,1715947838858,-620.03,0.00017501,2]
[327262726,1715947838867,-500.0,0.00017501,2]
[327262727,1715947838876,-5870.94,0.00017501,2]
[327262728,1715947838885,-151.0,0.00017501,2]
[327262729,1715947838895,-151.0,0.00017547,2]
[327262730,1715947838904,-201.200598,0.00017547,2]
[327262731,1715947838913,-201.200598,0.00017547,2]
[327262732,1715947838923,-11567.98,0.00017599,2]
[327262733,1715947838932,-693.54,0.00017599,2]
[327262734,1715947838941,-1819.59,0.00017599,2]
[327262735,1715947838951,-638.37,0.00017599,2]
[327262736,1715947838960,-500.0,0.000176,2]
[327262737,1715947838969,-500.0,0.000176,2]
[327262738,1715947838978,-500.0,0.000176,2]
[327262739,1715947838987,-500.0,0.000176,2]
[327262740,1715947838996,-168.18,0.000176,2]
[327262741,1715947839005,-151.0,0.000176,2]
[327262742,1715947839014,-201.200598,0.000176,2]
[327262743,1715947839024,-201.200598,0.000176,2]
[327262744,1715947839034,-500.0,0.000176,2]
[327262745,1715947839043,-2801.99,0.000176,2]
[327262746,1715947839052,-500.0,0.000176,2]
[327262747,1715947839061,-151.0,0.000176,2]
[327262748,1715947839070,-2527.87,0.000176,2]
[327262749,1715947839080,-550.99,0.000176,2]
[327262750,1715947839089,-260.380835,0.000176,2]
[327262751,1715947839099,-470.66689487,0.000176,2]
[327262752,1715947839108,-151.0,0.00017601,2]
[327262753,1715947839118,-201.200598,0.00017601,2]
[327262754,1715947839127,-201.200598,0.00017601,2]
[327262755,1715947839136,-150.0,0.00017677,2]
[327262756,1715947839146,-4221.46001999,0.00017682,2]
[327262757,1715947839155,-416.98047207,0.00017692,2]
[327262758,1715947839164,-502.29771368,0.00017695,2]
[327262759,1715947839173,-500.0,0.00017695,2]
[327262760,1715947839182,-500.0,0.00017695,2]
[327262761,1715947839192,-510.74930335,0.00017695,2]
[327262762,1715947839201,-501.25720095,0.00017695,2]
[327262763,1715947839210,-500.0,0.00017695,2]
[327262764,1715947839219,-502.11095164,0.00017695,2]
[327262765,1715947839229,-500.0,0.00017695,2]